[Event "Titled Tuesday Blitz April 11 Early 2023"]
[White "Chernomordik, Pavel"]
[Black "Skliarov, Viktor"]
[WhiteFideId "2804530"]
[BlackFideId "14106736"]
[WhiteElo "2193"]
[BlackElo "2317"]
[Result "1/2-1/2"]
[Round "10"]
[TimeControl "180+2"]
[Date "2023.04.11"]
[WhiteClock "0:00:09"]
[BlackClock "0:00:05"]

1. e4 {[%clk 0:03:00]}  g6 {[%clk 0:02:59]} 2. d4 {[%clk 0:02:57]}  Bg7 {[%clk 0:03:00]} 3. Nc3 {[%clk 0:02:57]}  c6 {[%clk 0:03:00]} 4. Bc4 {[%clk 0:02:56]}  d5 {[%clk 0:02:58]} 5. exd5 {[%clk 0:02:55]}  b5 {[%clk 0:02:58]} 6. Bb3 {[%clk 0:02:54]}  b4 {[%clk 0:02:58]} 7. Ne4 {[%clk 0:02:53]}  cxd5 {[%clk 0:02:55]} 8. Nc5 {[%clk 0:02:54]}  Nf6 {[%clk 0:02:49]} 9. Ne2 {[%clk 0:02:52]}  O-O {[%clk 0:02:47]} 10. O-O {[%clk 0:02:51]}  Nbd7 {[%clk 0:02:43]} 11. Nd3 {[%clk 0:02:51]}  a5 {[%clk 0:02:41]} 12. a3 {[%clk 0:02:37]}  bxa3 {[%clk 0:02:10]} 13. Rxa3 {[%clk 0:02:36]}  Ba6 {[%clk 0:02:10]} 14. Nef4 {[%clk 0:02:21]}  Bc4 {[%clk 0:02:03]} 15. Re1 {[%clk 0:02:17]}  Bxb3 {[%clk 0:01:58]} 16. Rxb3 {[%clk 0:02:15]}  e6 {[%clk 0:01:56]} 17. Ra3 {[%clk 0:02:12]}  Ne4 {[%clk 0:01:51]} 18. c3 {[%clk 0:02:12]}  Qb6 {[%clk 0:01:38]} 19. f3 {[%clk 0:02:08]}  Nd6 {[%clk 0:01:35]} 20. b3 {[%clk 0:02:01]}  Nb5 {[%clk 0:01:34]} 21. Ne2 {[%clk 0:01:51]}  Nxa3 {[%clk 0:01:29]} 22. Bxa3 {[%clk 0:01:50]}  Rfb8 {[%clk 0:01:30]} 23. Ndc1 {[%clk 0:01:45]}  Bf8 {[%clk 0:01:28]} 24. Bxf8 {[%clk 0:01:38]}  Kxf8 {[%clk 0:01:26]} 25. Qd2 {[%clk 0:01:37]}  Kg7 {[%clk 0:01:24]} 26. h4 {[%clk 0:01:35]}  Qd8 {[%clk 0:01:15]} 27. g3 {[%clk 0:01:30]}  Qf6 {[%clk 0:01:14]} 28. Kg2 {[%clk 0:01:29]}  a4 {[%clk 0:01:03]} 29. bxa4 {[%clk 0:01:24]}  Rxa4 {[%clk 0:01:03]} 30. h5 {[%clk 0:01:20]}  g5 {[%clk 0:00:55]} 31. Rh1 {[%clk 0:01:15]}  h6 {[%clk 0:00:55]} 32. Nd3 {[%clk 0:01:13]}  Rba8 {[%clk 0:00:47]} 33. Nec1 {[%clk 0:01:11]}  Nb6 {[%clk 0:00:44]} 34. Ne5 {[%clk 0:01:08]}  Nc4 {[%clk 0:00:43]} 35. Nxc4 {[%clk 0:01:04]}  dxc4 {[%clk 0:00:39]} 36. Re1 {[%clk 0:00:57]}  R8a5 {[%clk 0:00:38]} 37. g4 {[%clk 0:00:52]}  Ra1 {[%clk 0:00:37]} 38. Ne2 {[%clk 0:00:50]}  Rxe1 {[%clk 0:00:36]} 39. Qxe1 {[%clk 0:00:49]}  Ra2 {[%clk 0:00:31]} 40. Kg3 {[%clk 0:00:47]}  e5 {[%clk 0:00:28]} 41. Qd1 {[%clk 0:00:25]}  exd4 {[%clk 0:00:28]} 42. cxd4 {[%clk 0:00:21]}  c3 {[%clk 0:00:25]} 43. Qd3 {[%clk 0:00:17]}  Rd2 {[%clk 0:00:20]} 44. Qe3 {[%clk 0:00:15]}  Qd6+ {[%clk 0:00:13]} 45. Kh3 {[%clk 0:00:14]}  Rd1 {[%clk 0:00:08]} 46. Ng3 {[%clk 0:00:12]}  Qxg3+ {[%clk 0:00:02]} 47. Kxg3 {[%clk 0:00:12]}  c2 {[%clk 0:00:03]} 48. Qe5+ {[%clk 0:00:12]}  Kf8 {[%clk 0:00:03]} 49. Qd6+ {[%clk 0:00:10]}  Kg7 {[%clk 0:00:02]} 50. Qe5+ {[%clk 0:00:10]}  Kf8 {[%clk 0:00:03]} 51. Qd6+ {[%clk 0:00:09]}  Kg8 {[%clk 0:00:03]} 52. Qd8+ {[%clk 0:00:08]}  Kh7 {[%clk 0:00:02]} 53. Qf6 {[%clk 0:00:07]}  c1=Q {[%clk 0:00:02]} 54. Qxf7+ {[%clk 0:00:07]}  Kh8 {[%clk 0:00:03]} 55. Qf8+ {[%clk 0:00:07]}  Kh7 {[%clk 0:00:04]} 56. Qf7+ {[%clk 0:00:08]}  Kh8 {[%clk 0:00:04]} 57. Qf8+ {[%clk 0:00:09]}  Kh7 {[%clk 0:00:05]} 58. Qf7+ {[%clk 0:00:09]} 1/2-1/2


[Site "https://www.chess.com"]

[Event "Titled Tuesday Blitz April 11 Early 2023"]
[White "Dudzinski, Pawel"]
[Black "wqws"]
[WhiteFideId "1117890"]
[WhiteElo "2099"]
[BlackElo "2606"]
[Result "1/2-1/2"]
[Round "10"]
[TimeControl "180+2"]
[Date "2023.04.11"]
[WhiteClock "0:00:47"]
[BlackClock "0:02:07"]

1. e4 {[%clk 0:03:00]}  c5 {[%clk 0:02:59]} 2. c4 {[%clk 0:03:00]}  Nc6 {[%clk 0:02:58]} 3. Nc3 {[%clk 0:03:00]}  g6 {[%clk 0:02:58]} 4. g3 {[%clk 0:03:01]}  Bg7 {[%clk 0:02:58]} 5. Bg2 {[%clk 0:03:02]}  e6 {[%clk 0:02:59]} 6. Nge2 {[%clk 0:03:02]}  Nge7 {[%clk 0:02:59]} 7. Rb1 {[%clk 0:03:02]}  O-O {[%clk 0:03:00]} 8. d3 {[%clk 0:03:01]}  a6 {[%clk 0:02:59]} 9. a3 {[%clk 0:03:01]}  d5 {[%clk 0:02:51]} 10. exd5 {[%clk 0:02:36]}  exd5 {[%clk 0:02:52]} 11. Nxd5 {[%clk 0:02:35]}  Bg4 {[%clk 0:02:46]} 12. Be3 {[%clk 0:02:10]}  Nf5 {[%clk 0:02:44]} 13. O-O {[%clk 0:02:02]}  Ncd4 {[%clk 0:02:38]} 14. f3 {[%clk 0:01:06]}  Nxe3 {[%clk 0:02:36]} 15. Nxe3 {[%clk 0:01:05]}  Re8 {[%clk 0:02:30]} 16. Nxd4 {[%clk 0:00:17]}  Qxd4 {[%clk 0:02:25]} 17. fxg4 {[%clk 0:00:16]}  Rxe3 {[%clk 0:02:25]} 18. Kh1 {[%clk 0:00:15]}  Rxd3 {[%clk 0:02:26]} 19. Qc2 {[%clk 0:00:14]}  Rd2 {[%clk 0:02:25]} 20. Qb3 {[%clk 0:00:15]}  Rxb2 {[%clk 0:02:25]} 21. Rxb2 {[%clk 0:00:13]}  Qxb2 {[%clk 0:02:25]} 22. Qxb7 {[%clk 0:00:13]}  Qxb7 {[%clk 0:02:23]} 23. Bxb7 {[%clk 0:00:14]}  Rb8 {[%clk 0:02:23]} 24. Bd5 {[%clk 0:00:14]}  Kh8 {[%clk 0:02:19]} 25. Rxf7 {[%clk 0:00:13]}  Bb2 {[%clk 0:02:17]} 26. Ra7 {[%clk 0:00:12]}  Bxa3 {[%clk 0:02:17]} 27. Rxa6 {[%clk 0:00:12]}  Bc1 {[%clk 0:02:17]} 28. Kg2 {[%clk 0:00:07]}  Rb2+ {[%clk 0:02:17]} 29. Kh3 {[%clk 0:00:05]}  Be3 {[%clk 0:02:18]} 30. Ra7 {[%clk 0:00:03]}  Bg1 {[%clk 0:02:17]} 31. g5 {[%clk 0:00:04]}  Rxh2+ {[%clk 0:02:15]} 32. Kg4 {[%clk 0:00:04]}  h5+ {[%clk 0:02:08]} 33. gxh6 {[%clk 0:00:04]}  Rxh6 {[%clk 0:02:08]} 34. Kg5 {[%clk 0:00:05]}  Be3+ {[%clk 0:02:08]} 35. Kf6 {[%clk 0:00:04]}  g5+ {[%clk 0:02:02]} 36. Kf5 {[%clk 0:00:05]}  Rh7 {[%clk 0:01:56]} 37. Rxh7+ {[%clk 0:00:03]}  Kxh7 {[%clk 0:01:56]} 38. g4 {[%clk 0:00:04]}  Kg7 {[%clk 0:01:56]} 39. Be6 {[%clk 0:00:04]}  Kf8 {[%clk 0:01:56]} 40. Bd5 {[%clk 0:00:05]}  Ke7 {[%clk 0:01:56]} 41. Be6 {[%clk 0:00:05]}  Kd6 {[%clk 0:01:55]} 42. Bd5 {[%clk 0:00:06]}  Kc7 {[%clk 0:01:55]} 43. Be6 {[%clk 0:00:06]}  Kb6 {[%clk 0:01:56]} 44. Bd5 {[%clk 0:00:07]}  Ka5 {[%clk 0:01:56]} 45. Be6 {[%clk 0:00:08]}  Kb4 {[%clk 0:01:57]} 46. Bd5 {[%clk 0:00:09]}  Kc3 {[%clk 0:01:58]} 47. Be6 {[%clk 0:00:09]}  Kd4 {[%clk 0:01:59]} 48. Bd5 {[%clk 0:00:10]}  Bf4 {[%clk 0:01:59]} 49. Be6 {[%clk 0:00:11]}  Kc3 {[%clk 0:02:00]} 50. Bd5 {[%clk 0:00:11]}  Kb4 {[%clk 0:01:58]} 51. Be6 {[%clk 0:00:12]}  Ka5 {[%clk 0:01:58]} 52. Bd5 {[%clk 0:00:13]}  Kb6 {[%clk 0:01:59]} 53. Be6 {[%clk 0:00:13]}  Kc7 {[%clk 0:02:00]} 54. Bd5 {[%clk 0:00:14]}  Kd6 {[%clk 0:02:01]} 55. Be6 {[%clk 0:00:15]}  Ke7 {[%clk 0:02:02]} 56. Bd5 {[%clk 0:00:15]}  Kd6 {[%clk 0:02:02]} 57. Be6 {[%clk 0:00:16]}  Bh2 {[%clk 0:01:59]} 58. Bd5 {[%clk 0:00:17]}  Bg1 {[%clk 0:01:59]} 59. Kxg5 {[%clk 0:00:16]}  Ke5 {[%clk 0:01:59]} 60. Kg6 {[%clk 0:00:16]}  Be3 {[%clk 0:01:59]} 61. Kf7 {[%clk 0:00:15]}  Kf4 {[%clk 0:01:58]} 62. Be6 {[%clk 0:00:14]}  Ke5 {[%clk 0:01:58]} 63. Bd7 {[%clk 0:00:13]}  Bc1 {[%clk 0:01:56]} 64. Bc8 {[%clk 0:00:12]}  Kd4 {[%clk 0:01:54]} 65. Ba6 {[%clk 0:00:10]}  Ke5 {[%clk 0:01:54]} 66. Kg6 {[%clk 0:00:09]}  Kf4 {[%clk 0:01:51]} 67. Bc8 {[%clk 0:00:08]}  Ke5 {[%clk 0:01:45]} 68. Kf7 {[%clk 0:00:06]}  Be3 {[%clk 0:01:44]} 69. Kg6 {[%clk 0:00:05]}  Bd2 {[%clk 0:01:44]} 70. Kh5 {[%clk 0:00:05]}  Kf6 {[%clk 0:01:43]} 71. Kh4 {[%clk 0:00:04]}  Be1+ {[%clk 0:01:43]} 72. Kh5 {[%clk 0:00:04]}  Bd2 {[%clk 0:01:43]} 73. Bd7 {[%clk 0:00:05]}  Bf4 {[%clk 0:01:43]} 74. Kh4 {[%clk 0:00:05]}  Bg5+ {[%clk 0:01:42]} 75. Kg3 {[%clk 0:00:05]}  Ke5 {[%clk 0:01:41]} 76. Kf3 {[%clk 0:00:05]}  Kd6 {[%clk 0:01:41]} 77. Be8 {[%clk 0:00:05]}  Ke5 {[%clk 0:01:41]} 78. Bf7 {[%clk 0:00:05]}  Be7 {[%clk 0:01:39]} 79. Bg8 {[%clk 0:00:06]}  Kf6 {[%clk 0:01:38]} 80. Kf4 {[%clk 0:00:05]}  Bd6+ {[%clk 0:01:38]} 81. Ke4 {[%clk 0:00:05]}  Kg5 {[%clk 0:01:38]} 82. Kd5 {[%clk 0:00:05]}  Bf8 {[%clk 0:01:38]} 83. Be6 {[%clk 0:00:06]}  Kf4 {[%clk 0:01:37]} 84. Bc8 {[%clk 0:00:06]}  Kg5 {[%clk 0:01:36]} 85. Ke6 {[%clk 0:00:06]}  Bh6 {[%clk 0:01:33]} 86. Kd6 {[%clk 0:00:06]}  Bf8+ {[%clk 0:01:32]} 87. Ke6 {[%clk 0:00:07]}  Bg7 {[%clk 0:01:31]} 88. Ke7 {[%clk 0:00:07]}  Bd4 {[%clk 0:01:32]} 89. Bd7 {[%clk 0:00:07]}  Bg1 {[%clk 0:01:33]} 90. Kd6 {[%clk 0:00:07]}  Bf2 {[%clk 0:01:34]} 91. Kd5 {[%clk 0:00:08]}  Kf4 {[%clk 0:01:32]} 92. Ke6 {[%clk 0:00:07]}  Kxg4 {[%clk 0:01:33]} 93. Kd5+ {[%clk 0:00:07]}  Kf4 {[%clk 0:01:33]} 94. Bb5 {[%clk 0:00:08]}  Kf5 {[%clk 0:01:32]} 95. Bc6 {[%clk 0:00:09]}  Kf6 {[%clk 0:01:33]} 96. Bb5 {[%clk 0:00:10]}  Ke7 {[%clk 0:01:33]} 97. Bc6 {[%clk 0:00:10]}  Kd8 {[%clk 0:01:34]} 98. Bb5 {[%clk 0:00:11]}  Kc7 {[%clk 0:01:35]} 99. Bc6 {[%clk 0:00:12]}  Kb6 {[%clk 0:01:35]} 100. Bb5 {[%clk 0:00:13]}  Bh4 {[%clk 0:01:36]} 101. Bc6 {[%clk 0:00:13]}  Be7 {[%clk 0:01:36]} 102. Bb5 {[%clk 0:00:14]}  Bd8 {[%clk 0:01:36]} 103. Bc6 {[%clk 0:00:15]}  Bh4 {[%clk 0:01:34]} 104. Bb5 {[%clk 0:00:16]}  Bf2 {[%clk 0:01:35]} 105. Bc6 {[%clk 0:00:17]}  Ka5 {[%clk 0:01:34]} 106. Bb5 {[%clk 0:00:18]}  Kb4 {[%clk 0:01:35]} 107. Bc6 {[%clk 0:00:18]}  Kc3 {[%clk 0:01:36]} 108. Bb5 {[%clk 0:00:19]}  Kd3 {[%clk 0:01:37]} 109. Bc6 {[%clk 0:00:19]}  Bd4 {[%clk 0:01:38]} 110. Bb5 {[%clk 0:00:20]}  Ke3 {[%clk 0:01:38]} 111. Bc6 {[%clk 0:00:20]}  Kf4 {[%clk 0:01:39]} 112. Bb5 {[%clk 0:00:21]}  Kg5 {[%clk 0:01:40]} 113. Bc6 {[%clk 0:00:21]}  Kf6 {[%clk 0:01:41]} 114. Bb5 {[%clk 0:00:22]}  Ke7 {[%clk 0:01:42]} 115. Bc6 {[%clk 0:00:23]}  Kd8 {[%clk 0:01:43]} 116. Bb5 {[%clk 0:00:24]}  Kc7 {[%clk 0:01:44]} 117. Bc6 {[%clk 0:00:25]}  Kb6 {[%clk 0:01:45]} 118. Bb5 {[%clk 0:00:25]}  Ka5 {[%clk 0:01:46]} 119. Bc6 {[%clk 0:00:26]}  Kb4 {[%clk 0:01:47]} 120. Bb5 {[%clk 0:00:27]}  Ka3 {[%clk 0:01:47]} 121. Bc6 {[%clk 0:00:28]}  Kb2 {[%clk 0:01:48]} 122. Bb5 {[%clk 0:00:29]}  Ka1 {[%clk 0:01:49]} 123. Bc6 {[%clk 0:00:30]}  Kb1 {[%clk 0:01:50]} 124. Bb5 {[%clk 0:00:31]}  Kc1 {[%clk 0:01:50]} 125. Bc6 {[%clk 0:00:32]}  Kd1 {[%clk 0:01:51]} 126. Bb5 {[%clk 0:00:33]}  Kd2 {[%clk 0:01:52]} 127. Bc6 {[%clk 0:00:34]}  Ke3 {[%clk 0:01:53]} 128. Bb5 {[%clk 0:00:34]}  Kf4 {[%clk 0:01:54]} 129. Bc6 {[%clk 0:00:35]}  Kg5 {[%clk 0:01:55]} 130. Bb5 {[%clk 0:00:36]}  Kh4 {[%clk 0:01:56]} 131. Bc6 {[%clk 0:00:37]}  Kg3 {[%clk 0:01:57]} 132. Bb5 {[%clk 0:00:38]}  Kf2 {[%clk 0:01:58]} 133. Bc6 {[%clk 0:00:39]}  Kg1 {[%clk 0:01:59]} 134. Bb5 {[%clk 0:00:40]}  Kh2 {[%clk 0:01:59]} 135. Bc6 {[%clk 0:00:41]}  Kg3 {[%clk 0:02:00]} 136. Bd7 {[%clk 0:00:42]}  Kh4 {[%clk 0:02:01]} 137. Bc6 {[%clk 0:00:43]}  Kg5 {[%clk 0:02:02]} 138. Bb5 {[%clk 0:00:43]}  Kf6 {[%clk 0:02:03]} 139. Bc6 {[%clk 0:00:44]}  Kg7 {[%clk 0:02:04]} 140. Bb5 {[%clk 0:00:45]}  Kf8 {[%clk 0:02:05]} 141. Bc6 {[%clk 0:00:46]}  Kg8 {[%clk 0:02:06]} 142. Bb5 {[%clk 0:00:47]}  Kh8 {[%clk 0:02:07]} 1/2-1/2


[Site "https://www.chess.com"]

[Event "Titled Tuesday Blitz April 11 Early 2023"]
[White "Ratnakaran, K."]
[Black "Gonzalez, Francisco Silva"]
[WhiteFideId "5005507"]
[BlackFideId "1512285"]
[WhiteElo "2345"]
[BlackElo "2074"]
[Result "1-0"]
[Round "10"]
[TimeControl "180+2"]
[Date "2023.04.11"]
[WhiteClock "0:02:06"]
[BlackClock "0:01:19"]

1. e4 {[%clk 0:03:00]}  e5 {[%clk 0:02:53]} 2. Nf3 {[%clk 0:03:00]}  Nc6 {[%clk 0:02:52]} 3. Bb5 {[%clk 0:03:00]}  a6 {[%clk 0:02:51]} 4. Ba4 {[%clk 0:03:01]}  Nf6 {[%clk 0:02:52]} 5. O-O {[%clk 0:03:01]}  b5 {[%clk 0:02:52]} 6. Bb3 {[%clk 0:03:01]}  Bc5 {[%clk 0:02:53]} 7. c3 {[%clk 0:02:58]}  d6 {[%clk 0:02:53]} 8. d4 {[%clk 0:02:59]}  Bb6 {[%clk 0:02:53]} 9. a4 {[%clk 0:02:55]}  Bb7 {[%clk 0:02:53]} 10. axb5 {[%clk 0:02:54]}  axb5 {[%clk 0:02:53]} 11. Rxa8 {[%clk 0:02:55]}  Bxa8 {[%clk 0:02:53]} 12. d5 {[%clk 0:02:54]}  Ne7 {[%clk 0:02:52]} 13. Qe2 {[%clk 0:02:53]}  O-O {[%clk 0:02:52]} 14. g3 {[%clk 0:02:52]}  c6 {[%clk 0:02:50]} 15. dxc6 {[%clk 0:02:50]}  Bxc6 {[%clk 0:02:50]} 16. Bc2 {[%clk 0:02:49]}  Ng6 {[%clk 0:02:47]} 17. h4 {[%clk 0:02:48]}  h6 {[%clk 0:02:45]} 18. Kg2 {[%clk 0:02:48]}  Qc7 {[%clk 0:02:43]} 19. Rd1 {[%clk 0:02:47]}  Re8 {[%clk 0:02:41]} 20. Na3 {[%clk 0:02:47]}  Qb7 {[%clk 0:02:34]} 21. Nxb5 {[%clk 0:02:44]}  Nxe4 {[%clk 0:02:32]} 22. Bxe4 {[%clk 0:02:40]}  Bxe4 {[%clk 0:02:30]} 23. Nxd6 {[%clk 0:02:40]}  Bxf3+ {[%clk 0:02:30]} 24. Qxf3 {[%clk 0:02:41]}  Qxf3+ {[%clk 0:02:30]} 25. Kxf3 {[%clk 0:02:41]}  Rd8 {[%clk 0:02:29]} 26. Ke2 {[%clk 0:02:39]}  Ne7 {[%clk 0:02:13]} 27. b4 {[%clk 0:02:37]}  f5 {[%clk 0:02:08]} 28. c4 {[%clk 0:02:34]}  Bd4 {[%clk 0:02:08]} 29. c5 {[%clk 0:02:34]}  Nd5 {[%clk 0:02:05]} 30. Bd2 {[%clk 0:02:33]}  g6 {[%clk 0:02:01]} 31. f4 {[%clk 0:02:31]}  e4 {[%clk 0:02:00]} 32. Be1 {[%clk 0:02:29]}  Nc3+ {[%clk 0:01:59]} 33. Bxc3 {[%clk 0:02:25]}  Bxc3 {[%clk 0:02:00]} 34. c6 {[%clk 0:02:18]}  Bxb4 {[%clk 0:01:42]} 35. c7 {[%clk 0:02:16]}  Rf8 {[%clk 0:01:41]} 36. Ne8 {[%clk 0:02:09]}  Rxe8 {[%clk 0:01:32]} 37. Rd8 {[%clk 0:02:08]}  Kf7 {[%clk 0:01:20]} 38. Rxe8 {[%clk 0:02:06]}  Kxe8 {[%clk 0:01:19]} 39. c8=Q+ {[%clk 0:02:06]} 1-0


[Site "https://www.chess.com"]

[Event "Titled Tuesday Blitz April 11 Early 2023"]
[White "Rottenwohrer Suarez, Juan"]
[Black "Filgueira, Hernan"]
[WhiteFideId "32068182"]
[BlackFideId "101770"]
[WhiteElo "2174"]
[BlackElo "2363"]
[Result "0-1"]
[Round "10"]
[TimeControl "180+2"]
[Date "2023.04.11"]
[WhiteClock "0:00:02"]
[BlackClock "0:00:38"]

1. d4 {[%clk 0:02:51]}  d5 {[%clk 0:02:59]} 2. c4 {[%clk 0:02:21]}  e6 {[%clk 0:02:59]} 3. Nc3 {[%clk 0:02:20]}  c6 {[%clk 0:02:59]} 4. e4 {[%clk 0:02:20]}  Bb4 {[%clk 0:02:58]} 5. cxd5 {[%clk 0:02:14]}  exd5 {[%clk 0:02:57]} 6. e5 {[%clk 0:02:15]}  Ne7 {[%clk 0:02:57]} 7. Bg5 {[%clk 0:02:04]}  h6 {[%clk 0:02:52]} 8. Bh4 {[%clk 0:02:02]}  Qa5 {[%clk 0:02:50]} 9. Qb3 {[%clk 0:01:52]}  Nf5 {[%clk 0:02:48]} 10. Nf3 {[%clk 0:01:20]}  g5 {[%clk 0:02:46]} 11. Bg3 {[%clk 0:01:07]}  g4 {[%clk 0:02:46]} 12. Nd2 {[%clk 0:01:05]}  Nxd4 {[%clk 0:02:45]} 13. Qd1 {[%clk 0:01:04]}  h5 {[%clk 0:02:38]} 14. Be2 {[%clk 0:00:48]}  Nf5 {[%clk 0:02:30]} 15. O-O {[%clk 0:00:46]}  Nxg3 {[%clk 0:02:23]} 16. fxg3 {[%clk 0:00:43]}  Qb6+ {[%clk 0:02:19]} 17. Kh1 {[%clk 0:00:42]}  Be6 {[%clk 0:02:17]} 18. Nb3 {[%clk 0:00:38]}  Nd7 {[%clk 0:02:03]} 19. Nd4 {[%clk 0:00:38]}  O-O-O {[%clk 0:01:58]} 20. Na4 {[%clk 0:00:34]}  Qc7 {[%clk 0:01:58]} 21. Rc1 {[%clk 0:00:32]}  Nxe5 {[%clk 0:01:44]} 22. a3 {[%clk 0:00:30]}  Be7 {[%clk 0:01:40]} 23. b4 {[%clk 0:00:30]}  Kb8 {[%clk 0:01:38]} 24. b5 {[%clk 0:00:29]}  Nc4 {[%clk 0:01:07]} 25. bxc6 {[%clk 0:00:17]}  bxc6 {[%clk 0:01:06]} 26. Nxe6 {[%clk 0:00:14]}  fxe6 {[%clk 0:01:06]} 27. Bxc4 {[%clk 0:00:15]}  dxc4 {[%clk 0:01:06]} 28. Qe2 {[%clk 0:00:13]}  Rd4 {[%clk 0:00:57]} 29. Qxe6 {[%clk 0:00:12]}  Bxa3 {[%clk 0:00:50]} 30. Rb1+ {[%clk 0:00:12]}  Ka8 {[%clk 0:00:49]} 31. Rf7 {[%clk 0:00:12]}  Qd6 {[%clk 0:00:48]} 32. Qe1 {[%clk 0:00:05]}  Rd8 {[%clk 0:00:43]} 33. Nb6+ {[%clk 0:00:05]}  axb6 {[%clk 0:00:42]} 34. Ra1 {[%clk 0:00:02]}  Rd1 {[%clk 0:00:38]} 0-1


[Site "https://www.chess.com"]

[Event "Titled Tuesday Blitz April 11 Early 2023"]
[White "Cori T., Deysi"]
[Black "Liew, Chee-Meng Jimmy"]
[WhiteFideId "3801934"]
[BlackFideId "5700019"]
[WhiteElo "2292"]
[BlackElo "2245"]
[Result "1-0"]
[Round "10"]
[TimeControl "180+2"]
[Date "2023.04.11"]
[WhiteClock "0:00:19"]
[BlackClock "0:00:24"]

1. d4 {[%clk 0:03:00]}  Nf6 {[%clk 0:02:59]} 2. Nf3 {[%clk 0:03:01]}  c5 {[%clk 0:02:58]} 3. e3 {[%clk 0:03:01]}  cxd4 {[%clk 0:02:58]} 4. exd4 {[%clk 0:03:02]}  d5 {[%clk 0:02:59]} 5. h3 {[%clk 0:03:02]}  Nc6 {[%clk 0:03:00]} 6. c3 {[%clk 0:03:01]}  Bf5 {[%clk 0:02:59]} 7. Bd3 {[%clk 0:03:02]}  Bxd3 {[%clk 0:02:59]} 8. Qxd3 {[%clk 0:03:03]}  e6 {[%clk 0:03:00]} 9. O-O {[%clk 0:03:03]}  h6 {[%clk 0:02:59]} 10. Bf4 {[%clk 0:03:00]}  Bd6 {[%clk 0:02:59]} 11. Bxd6 {[%clk 0:02:59]}  Qxd6 {[%clk 0:03:00]} 12. Nbd2 {[%clk 0:03:00]}  O-O {[%clk 0:03:01]} 13. a4 {[%clk 0:03:00]}  a5 {[%clk 0:03:00]} 14. Rfe1 {[%clk 0:02:59]}  Nd7 {[%clk 0:02:58]} 15. Nb3 {[%clk 0:02:58]}  Rfe8 {[%clk 0:02:58]} 16. Nfd2 {[%clk 0:02:57]}  Rad8 {[%clk 0:02:53]} 17. Re2 {[%clk 0:02:57]}  e5 {[%clk 0:02:53]} 18. dxe5 {[%clk 0:02:47]}  Ndxe5 {[%clk 0:02:54]} 19. Qg3 {[%clk 0:02:47]}  d4 {[%clk 0:02:49]} 20. cxd4 {[%clk 0:02:30]}  Nxd4 {[%clk 0:02:49]} 21. Nxd4 {[%clk 0:02:29]}  Qxd4 {[%clk 0:02:50]} 22. Rae1 {[%clk 0:02:28]}  f6 {[%clk 0:02:45]} 23. Ne4 {[%clk 0:02:23]}  Kh7 {[%clk 0:02:33]} 24. Qf4 {[%clk 0:02:03]}  Qb6 {[%clk 0:02:13]} 25. Qf5+ {[%clk 0:01:59]}  Kg8 {[%clk 0:02:13]} 26. Kh2 {[%clk 0:01:34]}  Nd7 {[%clk 0:01:55]} 27. f4 {[%clk 0:01:20]}  Qc6 {[%clk 0:01:14]} 28. Ng5 {[%clk 0:01:13]}  Nf8 {[%clk 0:01:07]} 29. Ne4 {[%clk 0:00:37]}  Kh8 {[%clk 0:01:01]} 30. Qxa5 {[%clk 0:00:34]}  Ra8 {[%clk 0:00:57]} 31. Qc3 {[%clk 0:00:34]}  Rxa4 {[%clk 0:00:54]} 32. Qxc6 {[%clk 0:00:29]}  bxc6 {[%clk 0:00:55]} 33. Nc5 {[%clk 0:00:29]}  Rxe2 {[%clk 0:00:53]} 34. Rxe2 {[%clk 0:00:30]}  Rxf4 {[%clk 0:00:54]} 35. Re8 {[%clk 0:00:29]}  Kg8 {[%clk 0:00:47]} 36. Rxf8+ {[%clk 0:00:29]}  Kh7 {[%clk 0:00:45]} 37. Rf7 {[%clk 0:00:27]}  Rb4 {[%clk 0:00:38]} 38. Ne6 {[%clk 0:00:26]}  Kg6 {[%clk 0:00:34]} 39. g4 {[%clk 0:00:25]}  Rxb2+ {[%clk 0:00:30]} 40. Kg3 {[%clk 0:00:25]}  Rb3+ {[%clk 0:00:30]} 41. Kh4 {[%clk 0:00:26]}  h5 {[%clk 0:00:26]} 42. Rxg7+ {[%clk 0:00:25]}  Kh6 {[%clk 0:00:26]} 43. Rc7 {[%clk 0:00:19]}  hxg4 {[%clk 0:00:21]} 44. hxg4 {[%clk 0:00:19]}  Rc3 {[%clk 0:00:21]} 45. Nd4 {[%clk 0:00:18]}  f5 {[%clk 0:00:15]} 46. Nxf5+ {[%clk 0:00:17]}  Kg6 {[%clk 0:00:16]} 47. Rxc6+ {[%clk 0:00:17]}  Rxc6 {[%clk 0:00:15]} 48. Ne7+ {[%clk 0:00:17]}  Kf6 {[%clk 0:00:16]} 49. Nxc6 {[%clk 0:00:18]}  Kg6 {[%clk 0:00:16]} 50. Ne5+ {[%clk 0:00:17]}  Kg7 {[%clk 0:00:17]} 51. Kg5 {[%clk 0:00:17]}  Kh8 {[%clk 0:00:18]} 52. Kf6 {[%clk 0:00:18]}  Kg8 {[%clk 0:00:19]} 53. g5 {[%clk 0:00:18]}  Kh8 {[%clk 0:00:20]} 54. g6 {[%clk 0:00:18]}  Kg8 {[%clk 0:00:21]} 55. Nf7 {[%clk 0:00:18]}  Kf8 {[%clk 0:00:21]} 56. g7+ {[%clk 0:00:19]}  Kg8 {[%clk 0:00:22]} 57. Nh6+ {[%clk 0:00:18]}  Kh7 {[%clk 0:00:23]} 58. g8=Q+ {[%clk 0:00:18]}  Kxh6 {[%clk 0:00:24]} 59. Qg6# {[%clk 0:00:19]} 1-0


[Site "https://www.chess.com"]

[Event "Titled Tuesday Blitz April 11 Early 2023"]
[White "Goffredo_Fofi"]
[Black "Aradhya, Garg"]
[BlackFideId "25006746"]
[WhiteElo "2522"]
[BlackElo "2263"]
[Result "0-1"]
[Round "10"]
[TimeControl "180+2"]
[Date "2023.04.11"]
[WhiteClock "0:00:16"]
[BlackClock "0:02:23"]

1. d4 {[%clk 0:03:00]}  d5 {[%clk 0:02:59]} 2. Nf3 {[%clk 0:03:00]}  Nf6 {[%clk 0:02:59]} 3. Bf4 {[%clk 0:03:00]}  c5 {[%clk 0:02:55]} 4. e3 {[%clk 0:03:01]}  Nc6 {[%clk 0:02:55]} 5. Nbd2 {[%clk 0:03:01]}  Nh5 {[%clk 0:02:55]} 6. Be5 {[%clk 0:02:57]}  e6 {[%clk 0:02:55]} 7. c3 {[%clk 0:02:50]}  f6 {[%clk 0:02:54]} 8. Bg3 {[%clk 0:02:49]}  Nxg3 {[%clk 0:02:54]} 9. hxg3 {[%clk 0:02:50]}  Bd6 {[%clk 0:02:45]} 10. Bd3 {[%clk 0:02:49]}  f5 {[%clk 0:02:44]} 11. g4 {[%clk 0:02:27]}  fxg4 {[%clk 0:02:43]} 12. Nh4 {[%clk 0:02:24]}  Qg5 {[%clk 0:02:40]} 13. Ng6 {[%clk 0:02:19]}  Rg8 {[%clk 0:02:40]} 14. Rxh7 {[%clk 0:02:07]}  Bd7 {[%clk 0:02:38]} 15. Rh4 {[%clk 0:02:05]}  e5 {[%clk 0:02:38]} 16. dxe5 {[%clk 0:01:33]}  Nxe5 {[%clk 0:02:37]} 17. Nxe5 {[%clk 0:01:31]}  Qxh4 {[%clk 0:02:36]} 18. Nxd7 {[%clk 0:01:31]}  Kxd7 {[%clk 0:02:37]} 19. Qa4+ {[%clk 0:01:28]}  Ke7 {[%clk 0:02:37]} 20. Bf5 {[%clk 0:01:20]}  Rgd8 {[%clk 0:02:32]} 21. Bxg4 {[%clk 0:01:03]}  b5 {[%clk 0:02:30]} 22. Qd1 {[%clk 0:00:57]}  Rf8 {[%clk 0:02:27]} 23. Bf3 {[%clk 0:00:47]}  g5 {[%clk 0:02:26]} 24. Nf1 {[%clk 0:00:20]}  g4 {[%clk 0:02:25]} 25. g3 {[%clk 0:00:20]}  Qf6 {[%clk 0:02:25]} 26. Qxd5 {[%clk 0:00:15]}  Qxf3 {[%clk 0:02:25]} 27. Qd2 {[%clk 0:00:15]}  Rad8 {[%clk 0:02:23]} 28. Rd1 {[%clk 0:00:16]}  Bxg3 {[%clk 0:02:23]} 0-1


[Site "https://www.chess.com"]